fUST/lending_fUST_20250123
["ID","MTS","AMOUNT","RATE_DAILY","PERIOD"]
[350024844,1737576633336,-340.48528384,0.00019078,2]
[350024845,1737576633346,-300.0,0.00019139,2]
[350024846,1737576633355,-173.87145127,0.00019145,2]
[350024847,1737576633367,-223.33,0.00019178,2]
[350024848,1737576633376,-500.0,0.00019178,2]
[350024849,1737576633386,-500.0,0.00019178,2]
[350024850,1737576633395,-211.32,0.00019178,2]
[350024851,1737576633405,-500.0,0.00019178,2]
[350024852,1737576633414,-520.04,0.00019178,2]
[350024853,1737576633424,-525.88,0.00019178,2]
[350024854,1737576633434,-500.0,0.00019178,2]
[350024855,1737576633443,-500.0,0.00019178,2]
[350024856,1737576633452,-500.0,0.00019178,2]
[350024857,1737576633462,-500.0,0.00019178,2]
[350024858,1737576633472,-500.0,0.00019178,2]
[350024859,1737576633481,-500.0,0.00019178,2]
[350024860,1737576633491,-500.0,0.00019178,2]
[350024861,1737576633500,-173.82324371,0.00019178,2]
[350024862,1737576633510,-278.99,0.00019178,2]
[350024863,1737576633521,-500.0,0.00019178,2]
[350024864,1737576633531,-500.0,0.00019178,2]
[350024865,1737576633543,-500.0,0.00019178,2]
[350024866,1737576633553,-500.0,0.00019178,2]
[350024867,1737576633562,-500.0,0.00019178,2]
[350024868,1737576633572,-547.19,0.00019178,2]
[350024869,1737576633582,-500.0,0.00019178,2]
[350024870,1737576633591,-23893.09409642,0.00019178,2]
[350024871,1737576633605,-648.18590358,0.00019178,2]
[350024872,1737576633618,-625.21,0.00019178,2]
[350024873,1737576633627,-811.03,0.00019178,2]
[350024874,1737576633637,-339.16783188,0.00019178,2]
[350024875,1737576633646,-1288.75,0.00019178,2]
[350024876,1737576633656,-500.0,0.00019178,2]
[350024877,1737576633666,-998.37,0.00019178,2]
[350024878,1737576633675,-500.0,0.00019178,2]
[350024879,1737576633685,-1800.6,0.00019178,2]
[350024880,1737576633695,-504.55,0.00019178,2]
[350024881,1737576633704,-5671.92,0.00019178,2]
[350024882,1737576633714,-355.71837812,0.00019178,2]
[350024883,1737576633815,-144.28162188,0.00019178,2]
[350024884,1737576633825,-500.0,0.00019178,2]
[350024885,1737576633835,-539.33,0.00019178,2]
[350024886,1737576633845,-500.0,0.00019178,2]
[350024887,1737576633857,-500.0,0.00019178,7]
[350024888,1737576633877,-3070.57934133,0.00019178,2]
[350024934,1737576638549,-916.61000915,0.00018986,2]
[350024935,1737576638561,-7295.20065867,0.00019178,2]
[350024936,1737576638572,-500.0,0.00019178,2]
[350024937,1737576638583,-500.0,0.00019178,2]
[350024938,1737576638594,-522.27,0.00019178,2]
[350024939,1737576638606,-1086.1,0.00019178,2]
[350024940,1737576638623,-500.0,0.00019178,2]
[350024941,1737576638632,-308.29,0.00019178,2]
[350024942,1737576638642,-500.0,0.00019178,2]
[350024943,1737576638652,-3675.55,0.00019178,2]
[350024944,1737576638662,-709.1,0.00019178,2]
[350024945,1737576638671,-500.0,0.00019178,2]
[350024946,1737576638681,-1390.39,0.00019178,2]
[350024947,1737576638691,-500.0,0.00019178,2]
[350024958,1737576638854,-500.0,0.00019178,2]
[350024961,1737576638876,-500.0,0.00019178,2]
[350024963,1737576638887,-612.29,0.00019178,2]
[350024965,1737576638896,-500.0,0.00019178,2]
[350024967,1737576638905,-1693.88,0.00019178,2]
[350024969,1737576638915,-666.57,0.00019178,2]
[350024971,1737576638924,-222.23,0.00019178,2]
[350024973,1737576638934,-833.39,0.00019178,2]
[350024975,1737576638944,-6263.56,0.00019178,2]
[350024977,1737576638954,-1093.36,0.00019178,2]
[350024979,1737576638963,-1366.53,0.00019178,2]
[350024980,1737576638972,-500.0,0.00019178,2]
[350024981,1737576638981,-500.0,0.00019178,2]
[350024983,1737576638991,-607.12,0.00019178,2]
[350024985,1737576639000,-1274.67,0.00019178,2]
[350024986,1737576639009,-1027.03,0.00019178,2]
[350024987,1737576639019,-500.0,0.00019178,2]
[350024988,1737576639028,-500.0,0.00019178,2]
[350024989,1737576639038,-353.8915511,0.000192,2]
[350024990,1737576639048,-353.8915511,0.000192,2]
[350024991,1737576639059,-353.8915511,0.000192,2]
[350024992,1737576639068,-213.2170419,0.000192,2]
[350024993,1737576639078,-215.2533166,0.000192,2]
[350024994,1737576639088,-215.2533166,0.000192,2]
[350024995,1737576639098,-215.2533166,0.000192,2]
[350024996,1737576639107,-170.770315,0.000192,2]
[350024997,1737576639120,-154.1761492,0.000192,2]
[350024998,1737576639130,-307.9870724,0.000192,2]
[350024999,1737576639139,-173.87145127,0.00019212,2]
[350025000,1737576639148,-500.0,0.00019303,2]
[350025001,1737576639158,-650.55210854,0.00019303,2]
[350025002,1737576639167,-500.0,0.00019303,2]
[350025003,1737576639177,-500.0,0.00019303,2]
[350025004,1737576639187,-500.0,0.00019303,2]
[350025005,1737576639196,-500.0,0.00019303,2]
[350025006,1737576639206,-500.0,0.00019303,2]
[350025007,1737576639216,-500.0,0.00019303,2]
[350025008,1737576639225,-500.0,0.00019303,2]
[350025009,1737576639235,-500.0,0.00019303,2]
[350025010,1737576639245,-598.50202799,0.00019303,2]
[350025011,1737576639254,-500.0,0.00019303,2]
[350025012,1737576639263,-411.27109316,0.00019303,2]
[350025013,1737576639273,-500.0,0.00019303,2]
[350025014,1737576639283,-500.0,0.00019303,2]
[350025015,1737576639293,-500.0,0.00019303,2]
[350025016,1737576639303,-500.0,0.00019303,2]
[350025017,1737576639316,-500.0,0.00019303,2]
[350025018,1737576639326,-500.0,0.00019303,2]
[350025019,1737576639336,-500.0,0.00019303,2]
[350025020,1737576639346,-500.0,0.00019303,2]
[350025021,1737576639363,-488.3721703,0.00019303,2]
[350025022,1737576639380,-500.0,0.00019303,2]
[350025023,1737576639389,-500.0,0.00019303,2]
[350025024,1737576639399,-500.0,0.00019303,2]
[350025025,1737576639409,-500.0,0.00019303,2]
[350025026,1737576639419,-500.0,0.00019303,2]
[350025027,1737576639429,-624.00865716,0.00019303,2]
[350025028,1737576639439,-500.0,0.00019303,2]
[350025029,1737576639448,-500.0,0.00019303,2]
[350025030,1737576639458,-424.50318782,0.00019303,2]
[350025031,1737576639468,-500.0,0.00019303,2]
[350025032,1737576639478,-500.0,0.00019303,2]
[350025033,1737576639487,-500.0,0.00019303,2]
[350025034,1737576639497,-500.0,0.00019303,2]
[350025035,1737576639506,-500.0,0.00019303,2]
[350025036,1737576639515,-500.0,0.00019303,2]
[350025037,1737576639525,-500.0,0.00019303,2]
[350025038,1737576639535,-500.0,0.00019303,2]
[350025039,1737576639544,-500.0,0.00019303,2]
[350025040,1737576639554,-500.0,0.00019303,2]
[350025041,1737576639563,-500.0,0.00019303,2]
[350025042,1737576639572,-500.0,0.00019303,2]
[350025043,1737576639581,-500.0,0.00019303,2]
[350025044,1737576639590,-500.0,0.00019303,2]
[350025045,1737576639599,-500.0,0.00019303,2]
[350025046,1737576639611,-500.0,0.00019303,2]
[350025047,1737576639623,-500.0,0.00019303,2]
[350025048,1737576639632,-500.0,0.00019303,2]
[350025049,1737576639642,-283.53896405,0.00019303,2]
[350025050,1737576639652,-500.0,0.00019303,2]
[350025051,1737576639662,-500.0,0.00019303,2]
[350025052,1737576639672,-500.0,0.00019303,2]
[350025053,1737576639682,-500.0,0.00019303,2]
[350025054,1737576639692,-500.0,0.00019303,2]
[350025055,1737576639701,-500.0,0.00019303,2]
[350025056,1737576639710,-500.0,0.00019303,2]
[350025057,1737576639719,-500.0,0.00019303,2]
[350025058,1737576639728,-500.0,0.00019303,2]
[350025059,1737576639738,-500.0,0.00019303,2]
[350025060,1737576639747,-500.0,0.00019303,2]
[350025061,1737576639756,-500.0,0.00019303,2]
[350025062,1737576639765,-500.0,0.00019303,2]
[350025063,1737576639775,-500.0,0.00019303,2]
[350025064,1737576639786,-650.0,0.00019303,2]
[350025065,1737576639795,-500.0,0.00019303,2]
[350025066,1737576639804,-500.0,0.00019303,2]
[350025067,1737576639813,-500.0,0.00019303,2]
[350025068,1737576639823,-18719.41542753,0.00019304,5]
[350025069,1737576639832,-5449.57804252,0.00019304,5]
[350025070,1737576639845,-13425.9327479,0.00019304,5]
[350025095,1737576640695,-437.00618396,0.00019178,2]
[350025102,1737576640748,-112.40381604,0.00019178,2]
[350025104,1737576640758,-149.86390396,0.00019304,5]
[350025162,1737576643582,-8236.2,0.00019304,5]
[350026884,1737576937182,49000.0,0.000192,15]
[350026888,1737577368607,169.022511,0.00013973,2]
[350026981,1737577833001,-331.843,0.0001848,2]
[350026983,1737577833011,-279.64965357,0.000189,2]
[350026985,1737577833020,-500.0,0.00018903,2]
[350026987,1737577833030,-189.44461093,0.00018995,2]
[350026989,1737577833040,-249.0,0.00019076,2]
[350026991,1737577833050,-150.33414182,0.00019078,2]
[350026993,1737577833060,-297.92462336,0.00019078,2]
[350026995,1737577833070,-150.33414181,0.00019084,2]
[350026997,1737577833079,-150.33414181,0.00019089,2]
[350026999,1737577833088,-150.33414181,0.00019095,2]
[350027001,1737577833101,-300.0,0.00019099,2]
[350027003,1737577833111,-150.33414181,0.000191,2]
[350027005,1737577833120,-427.27532415,0.00019168,2]
[350027007,1737577833130,-230.8595749,0.00019177,2]
[350027010,1737577833143,-221.9084251,0.00019177,2]
[350027012,1737577833152,-308.43210983,0.00019178,2]
[350027014,1737577833161,-500.0,0.00019178,2]
[350027016,1737577833171,-500.0,0.00019178,2]
[350027018,1737577833181,-500.0,0.00019178,2]
[350027021,1737577833190,-500.0,0.00019178,2]
[350027024,1737577833199,-500.0,0.00019178,2]
[350027027,1737577833209,-500.0,0.00019178,2]
[350027029,1737577833218,-599.29,0.00019178,2]
[350027031,1737577833227,-500.0,0.00019178,2]
[350027033,1737577833237,-500.0,0.00019178,2]
[350027035,1737577833246,-500.0,0.00019178,2]
[350027037,1737577833256,-375.7788534,0.00019178,2]
[350027039,1737577833265,-500.0,0.00019178,2]
[350027041,1737577833274,-572.61,0.00019178,2]
[350027043,1737577833283,-500.0,0.00019178,2]
[350027045,1737577833292,-213.28794594,0.00019178,2]
[350027046,1737577833302,-500.0,0.00019178,2]
[350027048,1737577833312,-500.0,0.00019178,2]
[350027050,1737577833321,-500.0,0.00019178,2]
[350027052,1737577833331,-500.0,0.00019178,2]
[350027055,1737577833344,-328.30051623,0.00019178,2]
[350027056,1737577833354,-500.0,0.00019178,2]
[350027058,1737577833363,-500.0,0.00019178,2]
[350027060,1737577833373,-500.0,0.00019178,2]
[350027062,1737577833384,-548.18,0.00019178,2]
[350027065,1737577833394,-500.68227511,0.00019178,2]
[350027067,1737577833403,-500.0,0.00019178,2]
[350027068,1737577833414,-453.74914313,0.00019178,2]
[350027070,1737577833423,-500.0,0.00019178,2]
[350027072,1737577833433,-500.0,0.00019178,2]
[350027074,1737577833442,-500.0,0.00019178,2]
[350027076,1737577833451,-500.0,0.00019178,2]
[350027078,1737577833460,-500.0,0.00019178,2]
[350027080,1737577833470,-500.0,0.00019178,2]
[350027082,1737577833480,-577.14452491,0.00019178,2]
[350027084,1737577833489,-500.0,0.00019178,2]
[350027085,1737577833498,-26036.69,0.00019178,2]
[350027087,1737577833508,-500.0,0.00019178,2]
[350027090,1737577833517,-500.0,0.00019178,2]
[350027091,1737577833527,-500.0,0.00019178,2]
[350027093,1737577833537,-1346.56,0.00019178,2]
[350027096,1737577833546,-500.0,0.00019178,2]
[350027098,1737577833556,-500.0,0.00019178,2]
[350027100,1737577833565,-500.0,0.00019178,2]
[350027102,1737577833574,-897.01,0.00019178,2]
[350027103,1737577833583,-500.0,0.00019178,2]
[350027106,1737577833597,-500.0,0.00019178,2]
[350027108,1737577833607,-500.0,0.00019178,2]
[350027110,1737577833616,-507.45,0.00019178,2]
[350027112,1737577833625,-500.0,0.00019178,2]
[350027114,1737577833635,-261.41529885,0.00019178,2]
[350027116,1737577833644,-808.21,0.00019178,2]
[350027118,1737577833653,-500.0,0.00019178,2]
[350027120,1737577833663,-500.0,0.00019178,2]
[350027122,1737577833674,-500.0,0.00019178,2]
[350027124,1737577833683,-8503.34,0.00019178,2]
[350027126,1737577833694,-500.67531006,0.00019178,2]
[350027128,1737577833704,-500.0,0.00019178,2]
[350027130,1737577833714,-500.0,0.00019178,2]
[350027132,1737577833724,-500.0,0.00019178,2]
[350027134,1737577833734,-500.0,0.00019178,2]
[350027136,1737577833743,-500.0,0.00019178,2]
[350027138,1737577833753,-500.0,0.00019178,2]
[350027140,1737577833762,-1508.01,0.00019178,2]
[350027142,1737577833772,-1250.17,0.00019178,2]
[350027144,1737577833781,-500.0,0.00019178,2]
[350027146,1737577833792,-500.0,0.00019178,2]
[350027148,1737577833801,-2498.34,0.00019178,2]
[350027150,1737577833811,-500.0,0.00019178,2]
[350027152,1737577833820,-517.73,0.00019178,2]
[350027154,1737577833829,-500.0,0.00019178,2]
[350027156,1737577833839,-735.36,0.00019178,2]
[350027158,1737577833852,-500.0,0.00019178,2]
[350027160,1737577833861,-500.0,0.00019178,2]
[350027162,1737577833871,-172.72029629,0.00019178,2]
[350027164,1737577833880,-500.61794499,0.00019178,2]
[350027166,1737577833889,-688.06,0.00019178,2]
[350027168,1737577833899,-500.0,0.00019178,2]
[350027170,1737577833908,-500.0,0.00019178,2]
[350027172,1737577833917,-500.0,0.00019178,2]
[350027174,1737577833926,-500.0,0.00019178,2]
[350027176,1737577833935,-500.0,0.00019178,2]
[350027178,1737577833945,-500.0,0.00019178,2]
[350027180,1737577833954,-500.0,0.00019178,2]
[350027182,1737577833963,-735.77,0.00019178,2]
[350027184,1737577833973,-500.0,0.00019178,2]
[350027186,1737577833987,-500.0,0.00019178,2]
[350027188,1737577833996,-283.9696564,0.00019178,2]
[350027190,1737577834006,-500.0,0.00019178,2]
[350027192,1737577834016,-4324.51,0.00019178,2]
[350027194,1737577834027,-500.0,0.00019178,2]
[350027196,1737577834036,-11402.43,0.00019178,2]
[350027198,1737577834046,-1290.85,0.00019178,2]
[350027200,1737577834057,-500.0,0.00019178,2]
[350027202,1737577834067,-607.39,0.00019178,2]
[350027204,1737577834078,-900.93,0.00019178,2]
[350027207,1737577834087,-500.0,0.00019178,2]
[350027208,1737577834102,-1842.14,0.00019178,2]
[350027210,1737577834111,-500.0,0.00019178,2]
[350027212,1737577834121,-500.0,0.00019178,2]
[350027215,1737577834131,-6559.27,0.00019178,2]
[350027228,1737577834140,-614.36,0.00019178,2]
[350027231,1737577834266,-1635.77,0.00019178,2]
[350027233,1737577834277,-500.0,0.00019178,2]
[350027235,1737577834288,-500.0,0.00019178,2]
[350027237,1737577834299,-500.0,0.00019178,2]
[350027239,1737577834310,-500.0,0.00019178,2]
[350027241,1737577834320,-500.0,0.00019178,2]
[350027243,1737577834331,-500.0,0.00019178,2]
[350027245,1737577834343,-276.82143079,0.00019178,2]
[350027247,1737577834359,-500.0,0.00019178,2]
[350027250,1737577834370,-581.82,0.00019178,2]
[350027251,1737577834380,-828.74,0.00019178,2]
[350027253,1737577834391,-937.85,0.00019178,2]
[350027256,1737577834403,-500.0,0.00019178,2]
[350027258,1737577834413,-1479.16,0.00019178,2]
[350027260,1737577834423,-201.37442905,0.00019178,2]
[350027262,1737577834434,-1203.57,0.00019178,2]
[350027263,1737577834444,-1171.04,0.00019178,2]
[350027265,1737577834454,-500.0,0.00019178,2]
[350027268,1737577834463,-552.93,0.00019178,2]
[350027270,1737577834473,-551.10507713,0.00019178,2]
[350027272,1737577834482,-156.17,0.00019178,2]
[350027274,1737577834492,-500.0,0.00019198,3]
[350027276,1737577834503,-500.0,0.00019198,3]
[350027278,1737577834513,-500.0,0.00019198,2]
[350027280,1737577834522,-500.0,0.00019198,2]
[350027282,1737577834532,-500.0,0.00019198,2]
[350027284,1737577834541,-500.0,0.00019198,2]
[350027286,1737577834550,-500.0,0.00019198,2]
[350027288,1737577834559,-500.0,0.00019198,2]
[350027290,1737577834569,-500.0,0.00019198,2]
[350027292,1737577834578,-477.82589437,0.00019198,2]
[350027294,1737577834587,-500.0,0.00019198,2]
[350027296,1737577834602,-500.0,0.00019198,2]
[350027298,1737577834612,-540.47728778,0.00019198,2]
[350027300,1737577834621,-506.96812196,0.00019198,2]
[350027302,1737577834631,-500.0,0.00019198,2]
[350027304,1737577834640,-500.0,0.00019198,2]
[350027306,1737577834649,-500.0,0.00019198,2]
[350027308,1737577834658,-500.0,0.00019198,2]
[350027310,1737577834668,-500.0,0.00019198,2]
[350027312,1737577834677,-500.0,0.00019198,2]
[350027314,1737577834686,-500.0,0.00019198,2]
[350027316,1737577834695,-500.0,0.00019198,2]
[350027318,1737577834706,-500.0,0.00019198,2]
[350027320,1737577834715,-156.75451015,0.00019198,2]
[350027322,1737577834724,-500.0,0.00019198,2]
[350027324,1737577834733,-500.0,0.00019198,2]
[350027326,1737577834742,-500.0,0.00019198,2]
[350027328,1737577834751,-500.0,0.00019198,2]
[350027330,1737577834760,-500.0,0.00019198,2]
[350027332,1737577834769,-500.0,0.00019198,2]
[350027334,1737577834780,-425.4194824,0.00019198,2]
[350027336,1737577834789,-500.0,0.00019198,2]
[350027338,1737577834798,-500.0,0.00019198,2]
[350027340,1737577834807,-500.0,0.00019198,2]
[350027342,1737577834816,-500.0,0.00019198,2]
[350027344,1737577834825,-500.0,0.00019198,2]
[350027346,1737577834834,-500.0,0.00019198,2]
[350027348,1737577834845,-500.0,0.00019198,2]
[350027350,1737577834855,-500.0,0.00019198,2]
[350027352,1737577834864,-500.0,0.00019198,2]
[350027354,1737577834874,-500.0,0.00019198,2]
[350027356,1737577834884,-500.0,0.00019198,2]
[350027358,1737577834893,-500.0,0.00019198,2]
[350027360,1737577834903,-500.0,0.00019198,2]
[350027362,1737577834912,-500.0,0.00019198,2]
[350027364,1737577834922,-500.0,0.00019198,2]
[350027366,1737577834931,-500.0,0.00019198,2]
[350027368,1737577834940,-500.0,0.00019198,2]
[350027370,1737577834950,-500.0,0.00019198,2]
[350027372,1737577834959,-500.0,0.00019198,2]
[350027374,1737577834969,-500.0,0.00019198,2]
[350027376,1737577834981,-500.0,0.00019198,2]
[350027378,1737577834991,-500.0,0.00019198,2]
[350027381,1737577835001,-500.0,0.00019198,2]
[350027383,1737577835011,-500.0,0.00019198,2]
[350027385,1737577835021,-500.0,0.00019198,2]
[350027387,1737577835031,-500.0,0.00019198,2]
[350027389,1737577835039,-500.0,0.00019198,2]
[350027391,1737577835049,-549.4337394,0.00019198,2]
[350027393,1737577835061,-500.0,0.00019198,2]
[350027395,1737577835071,-500.0,0.00019198,2]
[350027397,1737577835079,-500.0,0.00019198,2]
[350027399,1737577835088,-500.0,0.00019198,2]
[350027401,1737577835101,-500.0,0.00019198,2]
[350027403,1737577835110,-500.0,0.00019198,2]
[350027404,1737577835119,-500.0,0.00019198,2]
[350027406,1737577835128,-500.0,0.00019198,2]
[350027408,1737577835137,-500.0,0.00019198,2]
[350027411,1737577835147,-550.0,0.00019198,2]
[350027412,1737577835156,-500.0,0.00019198,2]
[350027415,1737577835166,-500.0,0.00019198,2]
[350027416,1737577835175,-500.0,0.00019198,2]
[350027419,1737577835184,-500.0,0.00019198,2]
[350027420,1737577835193,-500.0,0.00019198,2]
[350027423,1737577835203,-500.0,0.00019198,2]
[350027425,1737577835212,-500.0,0.00019198,2]
[350027427,1737577835223,-500.0,0.00019198,2]
[350027429,1737577835232,-500.0,0.00019198,2]
[350027431,1737577835241,-254.85460435,0.00019199,2]
[350027433,1737577835250,-500.0,0.00019199,2]
[350027435,1737577835259,-462.18377218,0.00019199,2]
[350027436,1737577835268,-500.0,0.00019199,2]
[350027438,1737577835278,-151.0,0.00019199,2]
[350027440,1737577835287,-262.087734,0.00019199,2]
[350027442,1737577835296,-500.0,0.00019199,3]
[350027444,1737577835306,-500.0,0.00019199,3]
[350027446,1737577835317,-500.0,0.00019199,3]
[350027448,1737577835326,-500.0,0.00019199,3]
[350027450,1737577835335,-500.0,0.00019199,3]
[350027452,1737577835349,-500.0,0.00019199,3]
[350027453,1737577835359,-500.0,0.00019199,3]
[350027454,1737577835369,-500.0,0.00019199,3]
[350027455,1737577835378,-500.0,0.00019199,3]
[350027456,1737577835387,-500.0,0.00019199,3]
[350027457,1737577835397,-500.0,0.00019199,3]
[350027458,1737577835407,-500.0,0.00019199,3]
[350027459,1737577835417,-304.06,0.00019199,3]
[350027460,1737577835427,-160.0,0.00019199,2]
[350027461,1737577835436,-14153.41619667,0.00019199,5]
[350027462,1737577835446,-85500.50745838,0.000192,5]
[350027463,1737577835455,-151352.52713256,0.000192,15]
[350027700,1737577840827,-500.0,0.00019178,2]
[350027701,1737577840886,-500.0,0.00019178,2]
[350027702,1737577840895,-38.28783742,0.00019178,2]
[350027703,1737577840907,-736.25216258,0.00019178,2]
[350027704,1737577840916,-11059.16360863,0.000192,15]
[350027724,1737577843702,-1290.45,0.00019178,2]
[350027725,1737577843712,-4051.68668455,0.000192,15]
[350027746,1737577846742,-540.43944412,0.000192,15]
[350027749,1737578299985,168.751845,0.00013973,2]
[350027750,1737578971151,-162.1301035,0.0001606,2]
[350027751,1737578971174,-87.02278381,0.00016222,2]
[350027784,1737579032006,-300.0,0.00017682,2]
[350027787,1737579032016,-296.05,0.00017861,2]
[350027789,1737579032027,-3.95,0.00017861,2]
[350027791,1737579032037,-17519.0127112,0.00017862,2]
[350027793,1737579032046,-250.0,0.00017924,2]
[350027795,1737579032056,-260.3817412,0.00017986,2]
[350027797,1737579032065,-168.009661,0.00017993,2]
[350027799,1737579032074,-162.1301035,0.0001812,2]
[350027801,1737579032084,-344.611,0.0001834,2]
[350027803,1737579032093,-154.1761492,0.000184,2]
[350027805,1737579032102,-215.2533166,0.000184,2]
[350027807,1737579032111,-153.0,0.000184,2]
[350027809,1737579032123,-153.0,0.000184,2]
[350027811,1737579032133,-215.2533166,0.000184,2]
[350027813,1737579032142,-154.1761492,0.000184,2]
[350027815,1737579032151,-154.1761492,0.000184,2]
[350027817,1737579032160,-215.2533166,0.000184,2]
[350027819,1737579032170,-215.2533166,0.000184,2]
[350027821,1737579032179,-154.1761492,0.000184,2]
[350027823,1737579032188,-215.2533166,0.000184,2]
[350027825,1737579032197,-154.1761492,0.000184,2]
[350027827,1737579032207,-153.0,0.00018578,2]
[350027829,1737579032216,-153.0,0.00018578,2]
[350027831,1737579032225,-154.1761492,0.00018578,2]
[350027833,1737579032235,-215.2533166,0.00018578,2]
[350027835,1737579032244,-155.9,0.000186,2]
[350027837,1737579032255,-154.1761492,0.000186,2]
[350027839,1737579032264,-331.8405438,0.000186,2]
[350027842,1737579032274,-308.0434598,0.000189,2]
[350027844,1737579032284,-154.1761492,0.000189,2]
[350027845,1737579032294,-215.2533166,0.000189,2]
[350027847,1737579032304,-153.0,0.000189,2]
[350027850,1737579032314,-153.0,0.000189,2]
[350027851,1737579032323,-339.911839,0.000189,2]
[350027853,1737579032332,-154.1761492,0.000189,2]
[350027854,1737579032342,-153.0,0.000189,2]
[350027855,1737579032352,-153.0,0.000189,2]
[350027856,1737579032364,-215.2533166,0.000189,2]
[350027857,1737579032374,-154.1761492,0.000189,2]
[350027858,1737579032383,-153.0,0.000189,2]
[350027859,1737579032392,-307.7128455,0.000189,2]
[350027860,1737579032402,-153.0,0.000189,2]
[350027861,1737579032411,-215.2533166,0.000189,2]
[350027862,1737579032421,-545.10950428,0.000189,2]
[350027863,1737579032429,-500.0,0.00018903,2]
[350027864,1737579032441,-465.89703708,0.00018906,2]
[350027865,1737579032450,-154.1761492,0.00019,2]
[350027866,1737579032459,-154.1761492,0.00019,2]
[350027867,1737579032468,-154.1761492,0.00019,2]
[350027868,1737579032477,-295.1323707,0.00019,2]
[350027869,1737579032486,-154.1761492,0.00019,2]
[350027870,1737579032496,-281.2666588,0.00019023,2]
[350027871,1737579032505,-193.16199855,0.00019078,2]
[350027872,1737579032514,-193.16199854,0.000191,2]
[350027874,1737579032523,-185.0,0.00019123,2]
[350027876,1737579032533,-185.21,0.00019123,2]
[350027878,1737579032542,-187.45,0.00019168,2]
[350027880,1737579032553,-362.214,0.00019173,2]
[350027882,1737579032562,-301.93,0.00019178,2]
[350027884,1737579032571,-500.0,0.00019178,2]
[350027886,1737579032580,-500.0,0.00019178,2]
[350027888,1737579032590,-501.24094521,0.00019178,2]
[350027890,1737579032599,-500.0,0.00019178,2]
[350027892,1737579032608,-500.0,0.00019178,2]
[350027894,1737579032618,-500.0,0.00019178,2]
[350027896,1737579032627,-500.0,0.00019178,2]
[350027898,1737579032636,-654.22,0.00019178,2]
[350027900,1737579032646,-500.0,0.00019178,2]
[350027902,1737579032655,-500.86824252,0.00019178,2]
[350027904,1737579032664,-500.0,0.00019178,2]
[350027906,1737579032674,-509.09564168,0.00019178,2]
[350027908,1737579032683,-34.94001767,0.00019178,2]
[350027913,1737579032725,-465.05998233,0.00019178,2]
[350027915,1737579032734,-500.0,0.00019178,2]
[350027917,1737579032744,-574.32,0.00019178,2]
[350027919,1737579032754,-500.0,0.00019178,2]
[350027921,1737579032763,-500.0,0.00019178,2]
[350027923,1737579032772,-500.0,0.00019178,2]
[350027925,1737579032781,-594.6062647,0.00019178,2]
[350027927,1737579032790,-500.0,0.00019178,2]
[350027930,1737579032800,-500.0,0.00019178,2]
[350027932,1737579032810,-500.74463912,0.00019178,2]
[350027934,1737579032819,-500.0,0.00019178,2]
[350027936,1737579032828,-300.0,0.00019178,2]
[350027938,1737579032838,-500.0,0.00019178,2]